bitfinex/quotes_SOLUSD_20250317
["timestamp","ask_amount","ask_price","bid_price","bid_amount"]
[1742218155650,10.75980295,127.59,127.58,0.03]
[1742218155846,29.40945181,127.59,127.58,0.03]
[1742218156348,29.69377495,127.59,127.58,0.03]
[1742218157256,43.97866621,127.59,127.58,0.03]
[1742218157554,20.0,127.56,127.55,80.7369]
[1742218157758,63.30851993,127.56,127.5,224.6034]
[1742218157945,16.81947107,127.55,127.5,224.6034]
[1742218158273,16.81947107,127.55,127.51,7.8423]
[1742218158458,63.30851993,127.56,127.51,7.8423]
[1742218159369,36.81947107,127.56,127.52,7.8416]
[1742218159670,36.81947107,127.56,127.5,241.42277107]
[1742218159671,24.65957107,127.55,127.5,241.42277107]
[1742218159972,24.65957107,127.55,127.5,216.7603]
[1742218160268,24.65957107,127.55,127.5,224.6033]
[1742218160570,24.65957107,127.55,127.51,7.8425]
[1742218160571,16.81947107,127.55,127.51,7.8425]
[1742218161574,24.65947107,127.55,127.5,241.42277107]
[1742218161757,16.81947107,127.54,127.5,82.2603]
[1742218162569,35.46911993,127.54,127.5,80.7369]
[1742218163270,16.81947107,127.55,127.5,80.7369]
[1742218163473,35.46911993,127.55,127.5,97.55637107]
[1742218163673,18.64964886,127.55,127.5,97.55637107]
[1742218163972,36.81947107,127.56,127.52,7.8417]
[1742218164166,20.0,127.56,127.51,16.81947107]
[1742218164371,36.81947107,127.56,127.52,7.8417]
[1742218164568,44.65887107,127.56,127.51,7.8422]
[1742218165072,16.81947107,127.55,127.51,7.8423]
[1742218165274,16.81947107,127.54,127.5,88.5797]
[1742218165478,16.81947107,127.54,127.5,80.7369]
[1742218167173,24.94439421,127.54,127.53,0.2056771]
[1742218167556,43.87836621,127.54,127.53,0.2056771]
[1742218169566,43.59404307,127.54,127.53,0.2056771]
[1742218169861,43.87836621,127.54,127.53,0.2056771]
[1742218170082,47.41544261,127.54,127.53,0.2056771]
[1742218170681,47.41544261,127.54,127.53,7.71e-05]
[1742218170880,47.41544261,127.54,127.49,0.03]
[1742218170881,39.21829514,127.5,127.49,0.03]
[1742218171178,72.85723728,127.5,127.49,0.03]
[1742218171591,78.89713728,127.5,127.49,0.03]
[1742218171765,61.79334307,127.5,127.49,0.03]
[1742218171969,55.75344307,127.5,127.49,0.03]
[1742218172278,63.59654307,127.5,127.49,0.03]
[1742218172472,80.70033728,127.5,127.49,0.03]
[1742218174682,20.28432314,127.47,127.46,0.03]
[1742218174869,63.81058774,127.47,127.46,0.03]
[1742218175068,64.09491088,127.47,127.46,0.03]
[1742218176075,71.93981088,127.47,127.46,0.03]
[1742218178889,18.64964886,127.47,127.46,0.03]
[1742218179387,35.46911993,127.47,127.46,0.03]
[1742218180494,35.75344307,127.47,127.46,0.03]
[1742218180901,18.64964886,127.47,127.46,0.03]
[1742218181190,36.81947107,127.48,127.46,0.03]
[1742218181779,35.46911993,127.49,127.46,0.03]
[1742218182383,16.81947107,127.5,127.46,0.03]
[1742218182704,35.46911993,127.51,127.46,80.7669]
[1742218182876,18.64964886,127.49,127.46,88.6124]
[1742218183082,35.46911993,127.49,127.46,88.6124]
[1742218183911,18.64964886,127.49,127.46,88.6124]
[1742218185190,24.66337107,127.49,127.46,80.7669]
[1742218185399,35.46911993,127.47,127.46,0.03]
[1742218185695,18.64964886,127.47,127.46,0.03]
[1742218185898,20.0,127.47,127.46,7.8755]
[1742218186474,16.81947107,127.5,127.46,88.6124]
[1742218186678,20.0,127.49,127.46,88.6124]
[1742218186878,16.81947107,127.5,127.46,88.6124]
[1742218187498,17.10379421,127.51,127.46,105.43187107]
[1742218187700,35.46911993,127.52,127.46,105.43187107]
[1742218188001,35.46911993,127.52,127.47,16.81947107]
[1742218188595,18.64964886,127.52,127.47,16.81947107]
[1742218189295,18.64964886,127.52,127.48,7.8443]
[1742218189590,16.81947107,127.51,127.47,7.8448]
[1742218191103,35.53211993,127.52,127.47,24.66427107]
[1742218191693,16.81947107,127.51,127.47,7.8448]
[1742218192295,17.16679421,127.52,127.47,7.8448]
[1742218192501,17.16679421,127.52,127.47,88.5817]
[1742218192698,39.21829514,127.48,127.46,0.03]
[1742218192898,37.99943517,127.47,127.46,0.03]
[1742218194275,37.71511203,127.47,127.46,0.03]
[1742218194999,45.56001203,127.47,127.46,0.03]
[1742218198004,28.74054096,127.47,127.46,0.03]
[1742218198582,28.45621782,127.47,127.46,0.03]
[1742218198787,28.74054096,127.47,127.46,0.03]
[1742218199804,35.46911993,127.47,127.46,0.03]
[1742218200001,7.8446,127.48,127.46,0.03]
[1742218200320,0.063,127.52,127.48,16.81947107]
[1742218200493,16.81947107,127.51,127.48,80.7369]
[1742218201024,18.64964886,127.5,127.48,80.7369]
[1742218201390,16.81947107,127.51,127.48,80.7369]
[1742218201714,18.64964886,127.5,127.48,80.7369]
[1742218202009,0.063,127.49,127.48,80.7369]
[1742218202207,0.063,127.49,127.46,223.1124]
[1742218202382,0.063,127.49,127.46,239.93187107]
[1742218203504,0.063,127.49,127.48,16.81947107]
[1742218203881,0.063,127.49,127.48,232.05637107]
[1742218204084,0.063,127.52,127.49,80.6739]
[1742218204304,0.063,127.52,127.49,97.49337107]
[1742218204481,0.063,127.52,127.5,16.81947107]
[1742218205207,0.063,127.52,127.5,7.8429]
[1742218205410,16.88247107,127.52,127.49,80.6739]
[1742218205712,16.81947107,127.5,127.47,80.6739]
[1742218205895,16.81947107,127.49,127.47,80.6739]
[1742218206081,16.81947107,127.5,127.47,80.6739]
[1742218206404,35.46911993,127.5,127.47,80.6739]
[1742218206605,35.46911993,127.48,127.46,0.03]
[1742218206786,35.46911993,127.47,127.46,0.03]
[1742218206985,35.75344307,127.47,127.46,0.03]
[1742218207182,43.88266621,127.47,127.46,0.03]
[1742218207589,35.75344307,127.47,127.46,0.03]
[1742218207813,35.46911993,127.47,127.46,0.03]
[1742218208113,43.31401993,127.47,127.46,0.03]
[1742218208607,35.46911993,127.47,127.46,0.03]
[1742218209000,43.31401993,127.47,127.46,0.03]
[1742218209194,35.46911993,127.47,127.46,0.03]
[1742218209593,43.31401993,127.47,127.46,0.03]
[1742218210511,35.46911993,127.47,127.46,0.03]
[1742218210685,43.88266621,127.47,127.46,0.03]
[1742218211804,19.21829514,127.46,127.44,0.0001]
[1742218212005,38.00018697,127.45,127.44,0.0001]
[1742218212199,18.64964886,127.45,127.44,0.0001]
[1742218212611,35.46911993,127.45,127.44,0.0001]
[1742218213217,18.64964886,127.45,127.44,0.0001]
[1742218213517,35.46911993,127.45,127.44,0.0001]
[1742218214213,43.59964307,127.45,127.44,0.0001]
[1742218214592,60.70343728,127.45,127.44,0.0001]
[1742218214904,20.0,127.46,127.44,0.0001]
[1742218215313,18.64964886,127.45,127.44,0.0001]
[1742218215501,35.46911993,127.45,127.44,0.0001]
[1742218216007,43.88396621,127.45,127.44,0.0001]
[1742218216521,43.59964307,127.45,127.44,0.0001]
[1742218216721,35.75344307,127.45,127.44,0.0001]
[1742218217316,43.88396621,127.45,127.44,0.0001]
[1742218218395,43.59964307,127.45,127.44,0.0001]
[1742218219718,43.88396621,127.45,127.44,0.0001]
[1742218220417,47.84110344,127.45,127.44,0.0001]
[1742218220920,43.88396621,127.45,127.44,0.0001]
[1742218222211,62.32083728,127.45,127.44,0.0001]
[1742218222412,18.64964886,127.4,127.37,82.2082]
[1742218222612,35.46911993,127.4,127.37,1.5343]
[1742218222821,23.33237107,127.44,127.37,26.20487107]
[1742218222822,35.46911993,127.43,127.37,26.20487107]
[1742218223120,9.4636,127.45,127.38,16.81947107]
[1742218223323,35.46911993,127.43,127.38,16.81947107]
[1742218223701,35.46911993,127.43,127.39,7.8499]
[1742218224117,16.81947107,127.42,127.37,99.02767107]
[1742218224322,16.81947107,127.42,127.37,82.2082]
[1742218224625,0.28432314,127.4,127.37,82.2082]
[1742218224810,17.10379421,127.4,127.37,1.5343]
[1742218225211,0.28432314,127.4,127.37,1.5343]
[1742218225523,17.10379421,127.4,127.37,1.5343]
[1742218225920,26.49854886,127.41,127.37,9.3853]
[1742218225921,20.0,127.41,127.37,9.3853]
[1742218226227,18.64964886,127.4,127.37,1.5343]
[1742218226629,35.46911993,127.4,127.37,1.5343]
[1742218227302,18.64964886,127.4,127.37,1.5343]
[1742218227501,18.64964886,127.4,127.37,9.3854]
[1742218227718,16.81947107,127.41,127.37,9.3854]
[1742218228114,0.28432314,127.41,127.37,1.5643]
[1742218228327,16.81947107,127.4,127.37,1.5643]
[1742218228629,35.75344307,127.38,127.37,0.03]
[1742218229323,36.03776621,127.38,127.37,0.03]
[1742218229521,54.82024699,127.38,127.37,0.03]
[1742218229732,38.00077592,127.38,127.37,0.03]
[1742218229906,35.75344307,127.38,127.37,0.03]
[1742218230234,17.10379421,127.38,127.37,0.03]
[1742218230708,36.03776621,127.38,127.37,0.03]
[1742218232126,35.75344307,127.38,127.37,0.03]
[1742218232512,18.64964886,127.38,127.37,0.03]
[1742218232903,16.81947107,127.39,127.37,0.03]
[1742218233107,35.75344307,127.4,127.37,0.03]
[1742218233550,1.96259379,127.45,127.37,16.84947107]
[1742218233729,0.063,127.46,127.39,16.81947107]
[1742218233730,16.81947107,127.44,127.39,16.81947107]
[1742218233932,0.063,127.46,127.42,7.848]
[1742218234229,16.81947107,127.45,127.41,7.8483]
[1742218234430,18.64964886,127.44,127.41,7.8483]
[1742218234830,18.64964886,127.45,127.41,24.66777107]
[1742218235605,18.64964886,127.45,127.41,7.8483]
[1742218236010,0.063,127.46,127.41,24.66777107]
[1742218236206,18.64964886,127.45,127.41,24.66777107]
[1742218236411,16.88247107,127.46,127.41,24.66777107]
[1742218236412,0.063,127.46,127.42,16.81947107]
[1742218236628,0.063,127.46,127.43,16.81947107]
[1742218237027,0.063,127.46,127.44,16.81947107]
[1742218237229,0.063,127.46,127.43,16.81947107]
[1742218237422,0.063,127.46,127.42,16.81947107]
[1742218237624,18.64964886,127.45,127.41,105.34167107]
[1742218238327,0.063,127.46,127.41,105.34167107]
[1742218238632,16.88247107,127.46,127.41,105.34167107]
[1742218238828,16.81947107,127.45,127.41,80.6739]
[1742218239320,18.64964886,127.45,127.41,88.5225]
[1742218239505,18.64964886,127.45,127.41,105.34197107]
[1742218240213,0.063,127.46,127.42,16.81947107]
[1742218240427,0.063,127.46,127.42,97.49337107]
[1742218240626,0.063,127.46,127.43,16.81947107]
[1742218241528,0.063,127.46,127.42,97.49337107]
[1742218241829,0.063,127.46,127.42,105.34117107]
[1742218242133,35.53211993,127.46,127.42,80.6739]
[1742218242829,0.063,127.46,127.42,105.34127107]
[1742218243030,0.063,127.46,127.43,16.81947107]
[1742218243328,18.71264886,127.46,127.42,105.34127107]
[1742218243834,18.71264886,127.46,127.42,88.5218]
[1742218244031,18.64964886,127.45,127.42,80.6739]
[1742218244229,24.72817107,127.46,127.42,80.6739]
[1742218244435,18.64964886,127.45,127.42,88.5219]
[1742218244915,18.64964886,127.45,127.42,80.6739]
[1742218245318,16.88247107,127.46,127.42,80.6739]
[1742218245916,18.933972,127.45,127.39,215.1739]
[1742218246123,16.81947107,127.42,127.39,80.6739]
[1742218246345,16.81947107,127.41,127.37,80.7039]
[1742218246542,18.64964886,127.39,127.37,80.7039]
[1742218246820,36.81947107,127.41,127.37,7.881]
[1742218247037,20.0,127.41,127.37,7.881]
[1742218247240,35.46911993,127.4,127.37,0.03]
[1742218247825,43.31871993,127.4,127.37,0.03]
[1742218248134,16.81947107,127.39,127.37,0.03]
[1742218248336,35.46911993,127.4,127.37,0.03]
[1742218248641,18.64964886,127.41,127.37,16.84947107]
[1742218248833,20.0,127.42,127.37,0.03]
[1742218249028,20.0,127.42,127.37,97.52337107]
[1742218249424,35.46911993,127.41,127.37,80.7039]
[1742218250149,35.46911993,127.41,127.37,88.5549]
[1742218250740,35.46911993,127.41,127.37,88.555]
[1742218251525,18.64964886,127.41,127.37,88.555]
[1742218252025,7.58,127.42,127.37,105.37447107]
[1742218252235,7.643,127.46,127.41,16.81947107]
[1742218252421,7.643,127.46,127.41,80.6739]
[1742218252617,7.643,127.46,127.42,16.81947107]
[1742218252823,7.643,127.46,127.43,16.81947107]
[1742218253235,7.643,127.46,127.42,16.81947107]
[1742218254049,7.643,127.46,127.43,24.66687107]
[1742218254337,7.643,127.46,127.42,24.66727107]
[1742218254927,18.64964886,127.45,127.41,80.7039]
[1742218255123,35.46911993,127.43,127.41,80.7039]
[1742218255325,35.46911993,127.43,127.41,0.03]
[1742218255542,16.96163264,127.42,127.41,0.03]
[1742218255749,18.79181043,127.42,127.41,0.03]
[1742218255925,35.6112815,127.42,127.41,0.03]
[1742218256123,35.46911993,127.42,127.41,0.03]
[1742218256342,18.64964886,127.42,127.41,0.03]
[1742218256537,0.14216157,127.44,127.41,0.03]
[1742218256943,16.96163264,127.44,127.41,0.03]
[1742218257122,18.64964886,127.43,127.41,0.03]
[1742218257328,16.81947107,127.43,127.41,0.03]
[1742218257644,35.6112815,127.42,127.41,0.03]
[1742218257845,38.00022173,127.42,127.41,0.03]
[1742218258046,53.58742173,127.42,127.41,0.03]
[1742218258349,0.14216157,127.38,127.37,0.03]
[1742218258550,43.1912815,127.38,127.37,0.03]
[1742218258742,7.58,127.38,127.37,0.03]
[1742218259343,43.1912815,127.38,127.37,0.03]
[1742218259832,26.79829514,127.38,127.37,0.03]
[1742218260039,51.46826621,127.38,127.37,0.03]
[1742218260542,51.0417815,127.38,127.37,0.03]
[1742218261052,51.46826621,127.38,127.37,0.03]
[1742218261256,61.64859964,127.38,127.37,0.03]
[1742218261460,34.64879514,127.38,127.37,0.03]
[1742218261631,34.08014886,127.38,127.37,0.03]
[1742218261832,63.61144626,127.38,127.37,0.03]
[1742218262339,63.04279998,127.38,127.37,0.03]
[1742218262529,26.22964886,127.38,127.37,0.03]
[1742218262736,34.08014886,127.38,127.37,0.03]
[1742218263445,0.14216157,127.36,127.33,0.03]
[1742218263649,46.21809964,127.34,127.33,0.03]
[1742218263834,53.79809964,127.34,127.33,0.0001]
[1742218264034,59.60980105,127.34,127.33,0.0001]
[1742218264236,67.46270105,127.34,127.33,0.0001]
[1742218264831,61.65099964,127.34,127.33,0.0001]
[1742218265027,26.22964886,127.34,127.33,0.0001]
[1742218265233,1.5721,127.43,127.33,80.8001]
[1742218265433,26.9998045,127.39,127.34,26.9998045]
[1742218265628,26.9998045,127.39,127.34,107.7998045]
[1742218265849,7.848,127.42,127.37,26.9998045]
[1742218266054,0.28432314,127.41,127.34,80.8]
[1742218266264,5.59759374,127.43,127.34,80.8]
[1742218266265,18.64964886,127.35,127.34,80.8]
[1742218266465,18.64964886,127.35,127.33,0.0001]
[1742218266753,18.64964886,127.37,127.33,26.9999045]
[1742218266930,27.14196607,127.39,127.34,26.9998045]
[1742218268942,0.063,127.41,127.4,215.3]
[1742218269129,0.063,127.41,127.4,242.2998045]
[1742218270136,0.063,127.41,127.4,215.3]
[1742218270747,0.063,127.41,127.38,80.8]
[1742218270952,18.71264886,127.41,127.38,80.8]
[1742218271154,45.71245336,127.41,127.38,80.8]
[1742218271350,45.71245336,127.41,127.36,26.9998045]
[1742218271351,27.0628045,127.41,127.36,26.9998045]
[1742218271647,18.71264886,127.41,127.36,107.7998045]
[1742218271852,0.063,127.41,127.38,26.9998045]
[1742218272054,0.063,127.41,127.4,26.9998045]
[1742218272254,0.063,127.41,127.4,115.6490045]
[1742218273146,0.063,127.41,127.4,107.7998045]
[1742218273457,0.063,127.41,127.4,80.8]
[1742218274563,0.063,127.41,127.4,250.1490045]
[1742218275860,0.063,127.46,127.4,276.78598921]
[1742218276034,0.063,127.46,127.45,26.9998045]
[1742218276242,0.063,127.46,127.45,242.2998045]
[1742218276461,0.063,127.46,127.45,250.1460045]
[1742218276862,0.063,127.46,127.45,250.57248921]
[1742218277248,0.063,127.49,127.47,80.7999]
[1742218277462,0.063,127.49,127.48,26.9998045]
[1742218277658,0.063,127.49,127.47,215.2999]
[1742218277859,0.063,127.49,127.48,26.9998045]
[1742218278583,0.063,127.49,127.48,250.71265078]
[1742218278767,0.063,127.52,127.51,20.0]
[1742218278949,0.063,127.52,127.51,262.2997045]
[1742218279266,0.063,127.54,127.52,0.28432314]
[1742218279454,12.09039973,127.58,127.57,27.14196607]
[1742218279654,12.09039973,127.58,127.57,250.44835078]
[1742218279848,12.09039973,127.58,127.57,249.8797045]
[1742218280467,0.063,127.58,127.57,242.2997045]
[1742218280665,0.063,127.58,127.57,250.1385045]
[1742218281359,0.063,127.58,127.57,242.2997045]
[1742218281563,0.063,127.58,127.57,107.7997045]
[1742218281753,0.063,127.58,127.57,80.7999]
[1742218281953,27.0628045,127.58,127.55,80.7999]
[1742218282144,26.9998045,127.57,127.55,80.7999]
[1742218284656,7.7,127.55,127.52,80.7999]
[1742218285171,34.6998045,127.55,127.52,80.7999]
[1742218285357,7.7,127.55,127.52,80.7999]
[1742218285747,34.6998045,127.55,127.52,80.7999]
[1742218286263,7.7,127.55,127.52,107.7997045]
[1742218286462,0.063,127.58,127.52,80.7999]
[1742218286673,18.64964886,127.57,127.52,80.7999]
[1742218286858,26.9998045,127.56,127.52,80.7999]
[1742218287059,34.7428045,127.58,127.52,107.7997045]
[1742218287258,7.743,127.58,127.54,26.9998045]
[1742218287467,7.743,127.58,127.54,242.2997045]
[1742218287868,7.743,127.58,127.54,215.2999]
[1742218288266,7.743,127.58,127.54,242.2997045]
[1742218288465,0.063,127.58,127.56,26.9998045]
[1742218288667,0.063,127.58,127.57,26.9998045]
[1742218290878,0.063,127.58,127.57,35.78820918]
[1742218291074,0.0001,127.58,127.57,258.07239389]
[1742218291261,0.0001,127.58,127.57,257.26495078]
[1742218291463,0.0001,127.58,127.57,256.83846607]
[1742218291869,0.063,127.6,127.59,100.7999]
[1742218292090,0.0001,127.6,127.59,128.36835078]
[1742218292379,0.0001,127.63,127.62,0.42648471]
[1742218292564,0.0001,127.65,127.64,20.14216157]
[1742218292762,0.0001,127.65,127.64,190.70769156]
[1742218292956,0.0001,127.65,127.64,189.90295078]
[1742218294265,0.0001,127.65,127.64,208.55259964]
[1742218294469,0.0001,127.67,127.66,0.42648471]
[1742218294770,0.0001,127.67,127.66,170.56387814]
[1742218294973,0.0001,127.67,127.66,481.47526607]
[1742218295369,0.0001,127.67,127.66,481.3331045]
[1742218295570,0.0001,127.67,127.66,88.6332]
[1742218295772,0.0001,127.67,127.66,80.7999]
[1742218296562,26.9999045,127.67,127.64,80.7999]
[1742218296759,26.9998045,127.66,127.64,80.7999]
[1742218296971,34.8331045,127.66,127.64,80.7999]
[1742218297190,18.64974886,127.67,127.64,80.7999]
[1742218297368,26.9998045,127.65,127.64,80.7999]
[1742218297686,34.7998045,127.66,127.64,80.7999]
[1742218297884,7.8,127.66,127.64,80.7999]
[1742218298089,0.0001,127.67,127.64,115.6340045]
[1742218299180,0.0001,127.67,127.64,88.6343]
[1742218299373,0.0001,127.67,127.64,250.1341045]
[1742218299970,0.0001,127.67,127.65,26.9998045]
[1742218300285,0.0001,127.67,127.66,26.9998045]
[1742218300488,0.0001,127.67,127.66,242.2997045]
[1742218300865,0.0001,127.67,127.66,250.1330045]
[1742218301117,0.0001,127.68,127.67,80.94196157]
[1742218301387,0.0001,127.68,127.67,107.7996045]
[1742218301975,0.0001,127.68,127.67,243.67271468]
[1742218302178,0.0001,127.68,127.67,288.51770414]
[1742218302591,0.0001,127.68,127.67,242.44176607]
[1742218302899,0.0001,127.68,127.67,242.2996045]
[1742218303201,0.0001,127.68,127.67,263.39794217]
[1742218305701,0.0001,127.68,127.67,263.54010374]
[1742218306273,0.063,127.72,127.7,80.7367]
[1742218306504,0.063,127.72,127.71,40.26554217]
[1742218306791,48.12854217,127.72,127.68,80.7367]
[1742218307007,40.26554217,127.7,127.68,80.7367]
[1742218307376,40.26554217,127.71,127.68,80.7367]
[1742218307584,40.26554217,127.7,127.68,80.7367]
[1742218308103,15.6927,127.72,127.68,80.7367]
[1742218308104,40.26554217,127.71,127.68,80.7367]
[1742218308970,40.26554217,127.69,127.68,80.7367]
[1742218309178,18.64964886,127.68,127.63,215.2367]
[1742218309378,40.26554217,127.65,127.63,80.7367]
[1742218309601,40.26554217,127.64,127.63,80.7367]
[1742218309789,40.26554217,127.64,127.61,215.2367]
[1742218310105,40.26554217,127.62,127.61,215.2367]
[1742218310312,80.53108434,127.62,127.56,215.2367]
[1742218310476,40.26554217,127.59,127.56,215.2367]
[1742218310676,48.06554217,127.59,127.56,80.7367]
[1742218310893,7.8,127.59,127.56,80.7367]
[1742218311703,48.06554217,127.59,127.56,80.7367]
[1742218312209,55.90324217,127.59,127.56,80.7367]
[1742218312497,7.8,127.59,127.56,80.7367]
[1742218312700,7.8,127.59,127.56,88.5759]
[1742218313085,7.8,127.59,127.56,80.7367]
[1742218313882,40.26554217,127.6,127.56,88.5761]
[1742218314086,7.78,127.6,127.56,88.5761]
[1742218314907,18.79181043,127.66,127.58,40.26554217]
[1742218315090,40.26554217,127.66,127.61,40.26554217]
[1742218315282,48.02554217,127.66,127.61,121.00224217]
[1742218315479,6.3311,127.68,127.62,40.26554217]
[1742218315718,7.76,127.67,127.62,40.26554217]
[1742218316007,48.02554217,127.67,127.62,121.00224217]
[1742218316179,40.26554217,127.65,127.62,80.7367]
[1742218316383,40.26554217,127.64,127.62,80.7367]
[1742218317007,40.26554217,127.66,127.62,80.7367]
[1742218317204,40.26554217,127.65,127.62,80.7997]
[1742218317715,40.26554217,127.66,127.62,88.6351]
[1742218318010,40.26554217,127.65,127.62,80.7997]
[1742218319216,40.26554217,127.64,127.62,80.7997]
[1742218319509,0.28432314,127.66,127.62,80.7997]
[1742218319691,40.26554217,127.66,127.62,88.6353]
[1742218320005,48.02554217,127.67,127.62,128.90084217]
[1742218320197,7.76,127.67,127.62,88.6353]
[1742218320405,58.91519103,127.68,127.62,128.90084217]
[1742218320712,47.98554217,127.68,127.62,128.90084217]
[1742218321007,40.26554217,127.66,127.62,88.6353]
[1742218321191,40.26554217,127.65,127.62,80.7997]
[1742218321895,40.26554217,127.68,127.62,128.90084217]
[1742218322083,67.98554217,127.69,127.63,40.26554217]
[1742218322406,0.03,127.7,127.63,215.2367]
[1742218322708,0.03,127.7,127.65,40.26554217]
[1742218323011,40.26554217,127.69,127.63,255.50224217]
[1742218323217,26.85986338,127.68,127.64,7.8345]
[1742218323512,26.85986338,127.66,127.64,80.7367]
[1742218324016,26.85986338,127.66,127.62,142.3985]
[1742218324017,26.85986338,127.65,127.62,0.063]
[1742218324205,26.85986338,127.63,127.62,0.063]
[1742218324404,34.57986338,127.63,127.62,0.063]
[1742218324607,53.22951224,127.63,127.62,0.063]
[1742218324990,53.65599695,127.63,127.62,0.063]
[1742218325186,53.22951224,127.63,127.62,0.063]
[1742218326004,61.49109695,127.63,127.62,0.063]
[1742218326209,94.8951219,127.63,127.62,0.063]
[1742218326600,94.8951219,127.63,127.53,80.7367]
[1742218326791,26.85986338,127.56,127.53,80.7367]
[1742218326992,26.85986338,127.55,127.53,80.7367]
[1742218327503,15.559,127.57,127.53,80.7367]
[1742218327707,26.85986338,127.55,127.53,80.7367]
[1742218327898,26.85986338,127.56,127.53,80.7367]
[1742218328104,7.72,127.57,127.53,88.5779]
[1742218328514,34.57986338,127.57,127.53,88.5779]
[1742218329020,34.57986338,127.57,127.49,215.2997]
[1742218329021,26.85986338,127.54,127.49,215.2997]
[1742218329315,26.85986338,127.52,127.49,223.1432]
[1742218329499,26.91573357,127.56,127.49,223.1432]
[1742218329815,45.50951224,127.54,127.53,0.03]
[1742218330025,18.64964886,127.56,127.53,0.03]
[1742218330195,26.85986338,127.56,127.53,0.03]
[1742218330396,26.85986338,127.55,127.53,0.03]
[1742218330615,26.85986338,127.54,127.53,0.03]
[1742218330825,26.85986338,127.55,127.53,0.03]
[1742218330995,215.025,127.54,127.49,223.1432]
[1742218331203,19.21829514,127.46,127.31,12.77906125]
[1742218331395,19.21829514,127.46,127.33,80.7368]
[1742218331396,19.07613357,127.41,127.33,80.7368]
[1742218331596,26.85986338,127.35,127.33,215.2368]
[1742218331816,26.85986338,127.35,127.33,80.7368]
[1742218332012,26.85986338,127.36,127.33,80.7368]
[1742218332318,26.85986338,127.38,127.33,80.7368]
[1742218332500,26.85986338,127.35,127.33,80.7368]
[1742218332701,26.85986338,127.36,127.33,80.7368]
[1742218333004,8.04,127.4,127.33,80.7368]
[1742218333201,8.04,127.4,127.33,215.2368]
[1742218333403,40.46853074,127.38,127.35,312.0]
[1742218333703,48.50853074,127.4,127.35,312.0]
[1742218333906,8.04,127.4,127.34,40.46853074]
[1742218334112,40.46853074,127.39,127.34,40.46853074]
[1742218334418,40.46853074,127.39,127.33,255.70533074]
[1742218334601,48.50853074,127.4,127.34,40.46853074]
[1742218334805,8.0,127.41,127.36,40.46853074]
[1742218335120,40.46853074,127.39,127.36,215.2367]
[1742218335330,40.46853074,127.38,127.36,215.2367]
[1742218335628,40.46853074,127.39,127.36,215.2367]
[1742218335809,40.46853074,127.4,127.36,215.2367]
[1742218336929,40.46853074,127.4,127.36,527.2367]
[1742218337428,8.0,127.41,127.36,567.70523074]
[1742218337729,8.0,127.41,127.36,255.70523074]
[1742218337916,48.46853074,127.41,127.36,215.2367]
[1742218338306,40.46853074,127.4,127.36,215.2367]
[1742218338809,40.46853074,127.39,127.36,215.2367]
[1742218339010,40.46853074,127.4,127.36,215.2367]
[1742218339214,15.8487,127.41,127.36,215.2367]
[1742218339404,40.46853074,127.4,127.36,215.2367]
[1742218339608,40.46853074,127.4,127.36,80.7367]
[1742218339609,40.46853074,127.39,127.36,80.7367]
[1742218340007,7.8496,127.4,127.36,80.7367]
[1742218340214,15.8486,127.41,127.36,121.20523074]
[1742218340418,56.31713074,127.41,127.36,121.20523074]
[1742218340701,15.7882,127.42,127.37,40.46853074]
[1742218340909,40.46853074,127.41,127.36,392.7367]
[1742218341925,20.0,127.42,127.37,40.46853074]
[1742218342108,0.063,127.41,127.36,255.73523074]
[1742218342716,40.53153074,127.41,127.36,80.7667]
[1742218343127,40.46853074,127.4,127.36,80.7667]
[1742218343329,40.53153074,127.41,127.36,80.7667]
[1742218343904,48.38063074,127.41,127.36,80.7667]
[1742218344928,48.38063074,127.41,127.36,392.7667]
[1742218345226,40.46853074,127.39,127.36,80.7667]
[1742218345412,60.46853074,127.37,127.36,0.03]
[1742218345611,79.54466431,127.37,127.36,0.03]
[1742218345812,87.39576431,127.37,127.36,0.03]